[Event "Titled Tuesday Blitz November 22 Late 2022"]
[White "Drygalov, Andrey"]
[Black "Naroditsky, Daniel"]
[WhiteFideId "24171735"]
[BlackFideId "2026961"]
[WhiteElo "2472"]
[BlackElo "2628"]
[Result "0-1"]
[Round "03"]
[TimeControl "180+1"]
[Date "2022.11.22"]
[WhiteClock "0:00:10"]
[BlackClock "0:00:06"]

1. e4 {[%clk 0:02:59]}  c6 {[%clk 0:02:56]} 2. Nf3 {[%clk 0:02:59]}  d5 {[%clk 0:02:57]} 3. d3 {[%clk 0:03:00]}  Qc7 {[%clk 0:02:56]} 4. exd5 {[%clk 0:03:00]}  cxd5 {[%clk 0:02:57]} 5. c4 {[%clk 0:03:00]}  Nf6 {[%clk 0:02:58]} 6. Nc3 {[%clk 0:03:00]}  e6 {[%clk 0:02:58]} 7. a3 {[%clk 0:03:01]}  a6 {[%clk 0:02:51]} 8. g3 {[%clk 0:03:00]}  dxc4 {[%clk 0:02:42]} 9. dxc4 {[%clk 0:02:57]}  Bd6 {[%clk 0:02:43]} 10. Bg2 {[%clk 0:02:43]}  b6 {[%clk 0:02:43]} 11. Be3 {[%clk 0:02:26]}  Bb7 {[%clk 0:02:40]} 12. Rc1 {[%clk 0:02:26]}  Nbd7 {[%clk 0:02:39]} 13. O-O {[%clk 0:02:25]}  O-O {[%clk 0:02:39]} 14. b4 {[%clk 0:02:24]}  Rac8 {[%clk 0:02:36]} 15. Na4 {[%clk 0:02:23]}  Rfd8 {[%clk 0:02:34]} 16. Qe2 {[%clk 0:02:19]}  Bc6 {[%clk 0:02:18]} 17. Nb2 {[%clk 0:01:36]}  Qb7 {[%clk 0:02:11]} 18. Rfd1 {[%clk 0:01:32]}  Ne5 {[%clk 0:02:04]} 19. Ne1 {[%clk 0:00:45]}  Bxg2 {[%clk 0:01:59]} 20. Nxg2 {[%clk 0:00:46]}  Nf3+ {[%clk 0:01:39]} 21. Kh1 {[%clk 0:00:46]}  Bc7 {[%clk 0:01:18]} 22. Nd3 {[%clk 0:00:35]}  Qe4 {[%clk 0:00:58]} 23. Nde1 {[%clk 0:00:34]}  Nxe1 {[%clk 0:00:50]} 24. Qxe1 {[%clk 0:00:32]}  h6 {[%clk 0:00:42]} 25. Kg1 {[%clk 0:00:27]}  Ng4 {[%clk 0:00:38]} 26. Bf4 {[%clk 0:00:20]}  Rxd1 {[%clk 0:00:38]} 27. Rxd1 {[%clk 0:00:20]}  Qxe1+ {[%clk 0:00:26]} 28. Rxe1 {[%clk 0:00:20]}  Bxf4 {[%clk 0:00:27]} 29. Nxf4 {[%clk 0:00:20]}  Rxc4 {[%clk 0:00:27]} 30. Rd1 {[%clk 0:00:21]}  Ne5 {[%clk 0:00:20]} 31. Rd6 {[%clk 0:00:20]}  Rc6 {[%clk 0:00:19]} 32. Rd8+ {[%clk 0:00:18]}  Kh7 {[%clk 0:00:20]} 33. h4 {[%clk 0:00:19]}  g5 {[%clk 0:00:19]} 34. hxg5 {[%clk 0:00:19]}  hxg5 {[%clk 0:00:20]} 35. Ne2 {[%clk 0:00:20]}  g4 {[%clk 0:00:16]} 36. Kf1 {[%clk 0:00:16]}  Nf3 {[%clk 0:00:13]} 37. Nd4 {[%clk 0:00:11]}  Rc1+ {[%clk 0:00:12]} 38. Ke2 {[%clk 0:00:11]}  Re1+ {[%clk 0:00:11]} 39. Kd3 {[%clk 0:00:12]}  Rd1+ {[%clk 0:00:08]} 40. Ke3 {[%clk 0:00:12]}  e5 {[%clk 0:00:05]} 41. Nc6 {[%clk 0:00:11]}  Rc1 {[%clk 0:00:05]} 42. Rd6 {[%clk 0:00:11]}  f5 {[%clk 0:00:05]} 43. Rf6 {[%clk 0:00:08]}  Rc3+ {[%clk 0:00:05]} 44. Ke2 {[%clk 0:00:08]}  Rxc6 {[%clk 0:00:06]} 45. Rf7+ {[%clk 0:00:07]}  Kg6 {[%clk 0:00:06]} 46. Rf8 {[%clk 0:00:08]}  e4 {[%clk 0:00:07]} 47. Ke3 {[%clk 0:00:09]}  Kg5 {[%clk 0:00:06]} 48. Rg8+ {[%clk 0:00:09]}  Rg6 {[%clk 0:00:07]} 49. Re8 {[%clk 0:00:10]}  Rd6 {[%clk 0:00:07]} 50. Rg8+ {[%clk 0:00:10]}  Kf6 {[%clk 0:00:06]} 51. Kf4 {[%clk 0:00:11]}  Ne5 {[%clk 0:00:04]} 52. Rf8+ {[%clk 0:00:11]}  Nf7 {[%clk 0:00:05]} 53. Rb8 {[%clk 0:00:09]}  Rd3 {[%clk 0:00:04]} 54. Rxb6+ {[%clk 0:00:09]}  Nd6 {[%clk 0:00:05]} 55. Rxd6+ {[%clk 0:00:10]}  Rxd6 {[%clk 0:00:06]} 0-1


[Site "https://www.chess.com"]

[Event "Titled Tuesday Blitz November 22 Late 2022"]
[White "Drygalov, Sergey"]
[Black "Weetik, Vjacheslav"]
[WhiteFideId "24171743"]
[BlackFideId "4153472"]
[WhiteElo "2528"]
[BlackElo "2469"]
[Result "1-0"]
[Round "03"]
[TimeControl "180+1"]
[Date "2022.11.22"]
[WhiteClock "0:00:16"]
[BlackClock "0:00:09"]

1. d4 {[%clk 0:03:00]}  Nf6 {[%clk 0:02:58]} 2. c4 {[%clk 0:03:00]}  g6 {[%clk 0:02:58]} 3. Nc3 {[%clk 0:03:00]}  Bg7 {[%clk 0:02:59]} 4. e4 {[%clk 0:03:01]}  d6 {[%clk 0:02:59]} 5. Nf3 {[%clk 0:03:01]}  O-O {[%clk 0:02:59]} 6. Be2 {[%clk 0:03:02]}  e5 {[%clk 0:03:00]} 7. O-O {[%clk 0:03:03]}  Nc6 {[%clk 0:03:00]} 8. d5 {[%clk 0:03:03]}  Ne7 {[%clk 0:03:01]} 9. b4 {[%clk 0:03:04]}  Nh5 {[%clk 0:03:01]} 10. Re1 {[%clk 0:03:03]}  Nf4 {[%clk 0:03:01]} 11. Bf1 {[%clk 0:03:03]}  a5 {[%clk 0:03:02]} 12. bxa5 {[%clk 0:03:03]}  Rxa5 {[%clk 0:03:01]} 13. a4 {[%clk 0:03:03]}  c5 {[%clk 0:03:01]} 14. Nd2 {[%clk 0:02:58]}  Ra6 {[%clk 0:03:00]} 15. Ra3 {[%clk 0:02:56]}  Kh8 {[%clk 0:02:59]} 16. Nb5 {[%clk 0:02:50]}  Ng8 {[%clk 0:02:59]} 17. Nf3 {[%clk 0:02:32]}  Bg4 {[%clk 0:02:49]} 18. h3 {[%clk 0:02:22]}  Bc8 {[%clk 0:02:41]} 19. Kh2 {[%clk 0:02:22]}  Nh5 {[%clk 0:02:37]} 20. g3 {[%clk 0:02:05]}  Nh6 {[%clk 0:02:02]} 21. Ng5 {[%clk 0:01:50]}  Nf6 {[%clk 0:01:44]} 22. Be2 {[%clk 0:01:32]}  Nhg8 {[%clk 0:01:42]} 23. Bf1 {[%clk 0:01:28]}  h6 {[%clk 0:01:41]} 24. Nf3 {[%clk 0:01:28]}  Nh7 {[%clk 0:01:42]} 25. Bg2 {[%clk 0:01:22]}  Ne7 {[%clk 0:01:15]} 26. Nh4 {[%clk 0:01:14]}  g5 {[%clk 0:01:13]} 27. Nf3 {[%clk 0:01:08]}  f5 {[%clk 0:01:08]} 28. exf5 {[%clk 0:01:08]}  Bxf5 {[%clk 0:00:58]} 29. Nd2 {[%clk 0:01:07]}  Nf6 {[%clk 0:00:56]} 30. Nc3 {[%clk 0:01:04]}  Qd7 {[%clk 0:00:51]} 31. Nde4 {[%clk 0:00:58]}  Raa8 {[%clk 0:00:49]} 32. Be3 {[%clk 0:00:53]}  Rf7 {[%clk 0:00:48]} 33. Nxf6 {[%clk 0:00:47]}  Bxf6 {[%clk 0:00:48]} 34. Rb3 {[%clk 0:00:46]}  Raf8 {[%clk 0:00:40]} 35. a5 {[%clk 0:00:42]}  Bg7 {[%clk 0:00:40]} 36. Ne4 {[%clk 0:00:39]}  g4 {[%clk 0:00:22]} 37. h4 {[%clk 0:00:36]}  Ng6 {[%clk 0:00:20]} 38. Rb6 {[%clk 0:00:35]}  Bxe4 {[%clk 0:00:21]} 39. Bxe4 {[%clk 0:00:35]}  Nf4 {[%clk 0:00:20]} 40. gxf4 {[%clk 0:00:29]}  exf4 {[%clk 0:00:20]} 41. Bc1 {[%clk 0:00:29]}  Qd8 {[%clk 0:00:14]} 42. Qxg4 {[%clk 0:00:27]}  Be5 {[%clk 0:00:14]} 43. Qh5 {[%clk 0:00:22]}  f3+ {[%clk 0:00:14]} 44. Kh1 {[%clk 0:00:22]}  Rg7 {[%clk 0:00:09]} 45. Rg1 {[%clk 0:00:18]}  Rxg1+ {[%clk 0:00:08]} 46. Kxg1 {[%clk 0:00:19]}  Rg8+ {[%clk 0:00:09]} 47. Kf1 {[%clk 0:00:17]}  Qf6 {[%clk 0:00:09]} 48. Qxh6+ {[%clk 0:00:17]}  Qxh6 {[%clk 0:00:09]} 49. Bxh6 {[%clk 0:00:17]}  Rg4 {[%clk 0:00:09]} 50. Bxf3 {[%clk 0:00:18]}  Rxh4 {[%clk 0:00:08]} 51. Be3 {[%clk 0:00:18]}  Rxc4 {[%clk 0:00:08]} 52. Rxb7 {[%clk 0:00:18]}  Ra4 {[%clk 0:00:08]} 53. Ra7 {[%clk 0:00:18]}  c4 {[%clk 0:00:09]} 54. a6 {[%clk 0:00:18]}  c3 {[%clk 0:00:09]} 55. Ra8+ {[%clk 0:00:18]}  Kg7 {[%clk 0:00:09]} 56. a7 {[%clk 0:00:17]}  c2 {[%clk 0:00:10]} 57. Rc8 {[%clk 0:00:17]}  Rxa7 {[%clk 0:00:09]} 58. Bxa7 {[%clk 0:00:16]} 1-0


[Site "https://www.chess.com"]

[Event "Titled Tuesday Blitz November 22 Late 2022"]
[White "Dylag, Emilia"]
[Black "Bayo Milagro, Alvaro"]
[WhiteFideId "21805172"]
[BlackFideId "22275240"]
[WhiteElo "1878"]
[BlackElo "2270"]
[Result "1-0"]
[Round "03"]
[TimeControl "180+1"]
[Date "2022.11.23"]
[WhiteClock "0:00:43"]
[BlackClock "0:00:14"]

1. d4 {[%clk 0:02:53]}  Nf6 {[%clk 0:03:00]} 2. c4 {[%clk 0:02:53]}  g6 {[%clk 0:03:00]} 3. g3 {[%clk 0:02:52]}  Bg7 {[%clk 0:03:00]} 4. Bg2 {[%clk 0:02:53]}  O-O {[%clk 0:03:01]} 5. Nf3 {[%clk 0:02:53]}  c6 {[%clk 0:02:58]} 6. Nc3 {[%clk 0:02:52]}  d5 {[%clk 0:02:59]} 7. cxd5 {[%clk 0:02:51]}  cxd5 {[%clk 0:02:59]} 8. O-O {[%clk 0:02:51]}  e6 {[%clk 0:02:59]} 9. Ne5 {[%clk 0:02:46]}  Nfd7 {[%clk 0:02:59]} 10. Bf4 {[%clk 0:02:37]}  Nc6 {[%clk 0:02:36]} 11. Nxc6 {[%clk 0:02:34]}  bxc6 {[%clk 0:02:37]} 12. Bd6 {[%clk 0:02:34]}  Re8 {[%clk 0:02:37]} 13. Na4 {[%clk 0:02:32]}  Ba6 {[%clk 0:02:36]} 14. Rc1 {[%clk 0:02:29]}  Rc8 {[%clk 0:02:27]} 15. Re1 {[%clk 0:02:28]}  Qa5 {[%clk 0:02:11]} 16. e4 {[%clk 0:02:16]}  Bh6 {[%clk 0:01:43]} 17. b4 {[%clk 0:02:14]}  Qd8 {[%clk 0:01:41]} 18. Rc3 {[%clk 0:02:10]}  Nb6 {[%clk 0:01:19]} 19. Be5 {[%clk 0:01:52]}  f6 {[%clk 0:01:15]} 20. Bf4 {[%clk 0:01:52]}  Bxf4 {[%clk 0:01:15]} 21. gxf4 {[%clk 0:01:53]}  Nxa4 {[%clk 0:01:06]} 22. Qxa4 {[%clk 0:01:51]}  Bb5 {[%clk 0:01:04]} 23. Qxa7 {[%clk 0:01:48]}  Ra8 {[%clk 0:01:04]} 24. Qc5 {[%clk 0:01:47]}  Rxa2 {[%clk 0:00:57]} 25. exd5 {[%clk 0:01:29]}  exd5 {[%clk 0:00:57]} 26. Rcc1 {[%clk 0:01:04]}  Qd7 {[%clk 0:00:40]} 27. Bxd5+ {[%clk 0:00:45]}  Kg7 {[%clk 0:00:14]} 28. Bxa2 {[%clk 0:00:43]} 1-0


[Site "https://www.chess.com"]

[Event "Titled Tuesday Blitz November 22 Late 2022"]
[White "Fernandez De La Vara, Arnaldo"]
[Black "Lopez Mulet, Inigo"]
[WhiteFideId "3518388"]
[BlackFideId "22235620"]
[WhiteElo "2669"]
[BlackElo "2450"]
[Result "1-0"]
[Round "03"]
[TimeControl "180+1"]
[Date "2022.11.23"]
[WhiteClock "0:00:47"]
[BlackClock "0:00:36"]

1. Nf3 {[%clk 0:03:00]}  d5 {[%clk 0:02:58]} 2. g3 {[%clk 0:03:01]}  Nc6 {[%clk 0:02:58]} 3. c4 {[%clk 0:02:57]}  d4 {[%clk 0:02:58]} 4. Bg2 {[%clk 0:02:56]}  e5 {[%clk 0:02:58]} 5. d3 {[%clk 0:02:55]}  h6 {[%clk 0:02:45]} 6. O-O {[%clk 0:02:52]}  Nf6 {[%clk 0:02:46]} 7. b4 {[%clk 0:02:51]}  Bxb4 {[%clk 0:02:29]} 8. Nxe5 {[%clk 0:02:51]}  Nxe5 {[%clk 0:02:19]} 9. Qa4+ {[%clk 0:02:51]}  Nc6 {[%clk 0:02:19]} 10. Bxc6+ {[%clk 0:02:50]}  bxc6 {[%clk 0:02:20]} 11. Qxb4 {[%clk 0:02:50]}  Bh3 {[%clk 0:02:17]} 12. Re1 {[%clk 0:02:46]}  Qd6 {[%clk 0:02:15]} 13. Ba3 {[%clk 0:02:37]}  Kd7 {[%clk 0:02:07]} 14. Nd2 {[%clk 0:02:17]}  a5 {[%clk 0:02:00]} 15. Qb2 {[%clk 0:02:01]}  Rhb8 {[%clk 0:00:55]} 16. Qxb8 {[%clk 0:01:29]}  Rxb8 {[%clk 0:00:55]} 17. Bxd6 {[%clk 0:01:29]}  cxd6 {[%clk 0:00:56]} 18. Reb1 {[%clk 0:01:27]}  Re8 {[%clk 0:00:49]} 19. Re1 {[%clk 0:01:14]}  d5 {[%clk 0:00:45]} 20. c5 {[%clk 0:01:06]}  Bg4 {[%clk 0:00:41]} 21. f3 {[%clk 0:01:03]}  Bf5 {[%clk 0:00:41]} 22. Nb3 {[%clk 0:01:02]}  a4 {[%clk 0:00:41]} 23. Nxd4 {[%clk 0:01:02]}  Bg6 {[%clk 0:00:42]} 24. Rab1 {[%clk 0:00:59]}  Rc8 {[%clk 0:00:38]} 25. Rb7+ {[%clk 0:00:56]}  Rc7 {[%clk 0:00:38]} 26. Reb1 {[%clk 0:00:55]}  Ng8 {[%clk 0:00:35]} 27. Rxc7+ {[%clk 0:00:50]}  Kxc7 {[%clk 0:00:36]} 28. Rb4 {[%clk 0:00:48]}  Ne7 {[%clk 0:00:37]} 29. Rxa4 {[%clk 0:00:47]}  f5 {[%clk 0:00:36]} 30. Ra7+ {[%clk 0:00:47]} 1-0


[Site "https://www.chess.com"]

[Event "Titled Tuesday Blitz November 22 Late 2022"]
[White "Fernandez Garcia, Gumersindo"]
[Black "Goltsev, Dmitry"]
[WhiteFideId "24516740"]
[BlackFideId "24176710"]
[WhiteElo "2483"]
[BlackElo "2753"]
[Result "0-1"]
[Round "03"]
[TimeControl "180+1"]
[Date "2022.11.23"]
[WhiteClock "0:00:04"]
[BlackClock "0:00:40"]

1. e4 {[%clk 0:03:00]}  e6 {[%clk 0:02:59]} 2. d4 {[%clk 0:02:58]}  d5 {[%clk 0:03:00]} 3. Bd3 {[%clk 0:02:58]}  c5 {[%clk 0:02:58]} 4. exd5 {[%clk 0:02:57]}  Qxd5 {[%clk 0:02:57]} 5. Nf3 {[%clk 0:02:50]}  cxd4 {[%clk 0:02:57]} 6. O-O {[%clk 0:02:47]}  Nc6 {[%clk 0:02:56]} 7. Nbd2 {[%clk 0:02:45]}  Nf6 {[%clk 0:02:53]} 8. Nb3 {[%clk 0:02:44]}  e5 {[%clk 0:02:52]} 9. Re1 {[%clk 0:02:38]}  Be7 {[%clk 0:02:52]} 10. Bg5 {[%clk 0:02:29]}  O-O {[%clk 0:02:48]} 11. c3 {[%clk 0:02:16]}  Bg4 {[%clk 0:02:24]} 12. cxd4 {[%clk 0:02:11]}  exd4 {[%clk 0:02:22]} 13. Bxf6 {[%clk 0:01:52]}  Bxf6 {[%clk 0:02:23]} 14. Be4 {[%clk 0:01:45]}  Qh5 {[%clk 0:02:18]} 15. h3 {[%clk 0:01:40]}  Be6 {[%clk 0:02:17]} 16. Nfxd4 {[%clk 0:01:34]}  Qxd1 {[%clk 0:02:14]} 17. Rexd1 {[%clk 0:01:27]}  Bxb3 {[%clk 0:02:11]} 18. Nxb3 {[%clk 0:01:20]}  Bxb2 {[%clk 0:02:11]} 19. Rab1 {[%clk 0:01:18]}  Ba3 {[%clk 0:02:08]} 20. Rd7 {[%clk 0:01:14]}  Rfe8 {[%clk 0:01:36]} 21. Bd5 {[%clk 0:01:08]}  Re7 {[%clk 0:01:34]} 22. Rxe7 {[%clk 0:01:02]}  Bxe7 {[%clk 0:01:35]} 23. Rc1 {[%clk 0:00:57]}  Nb4 {[%clk 0:01:29]} 24. Bxb7 {[%clk 0:00:54]}  Rb8 {[%clk 0:01:29]} 25. Bf3 {[%clk 0:00:47]}  Nxa2 {[%clk 0:01:27]} 26. Rc7 {[%clk 0:00:46]}  Kf8 {[%clk 0:01:20]} 27. Rb7 {[%clk 0:00:25]}  Rxb7 {[%clk 0:01:18]} 28. Bxb7 {[%clk 0:00:26]}  Nc3 {[%clk 0:01:16]} 29. Kf1 {[%clk 0:00:24]}  Bb4 {[%clk 0:01:17]} 30. Ba6 {[%clk 0:00:24]}  Ke7 {[%clk 0:01:16]} 31. Nd4 {[%clk 0:00:24]}  Kd7 {[%clk 0:01:07]} 32. Nb5 {[%clk 0:00:23]}  Ne4 {[%clk 0:00:44]} 33. Nxa7 {[%clk 0:00:21]}  Bc5 {[%clk 0:00:43]} 34. Bb5+ {[%clk 0:00:20]}  Kc7 {[%clk 0:00:39]} 35. Nc6 {[%clk 0:00:16]}  Kb6 {[%clk 0:00:39]} 36. Ba4 {[%clk 0:00:13]}  Nc3 {[%clk 0:00:39]} 37. Bb3 {[%clk 0:00:09]}  Kxc6 {[%clk 0:00:38]} 38. Bxf7 {[%clk 0:00:10]}  Ne4 {[%clk 0:00:37]} 39. f3 {[%clk 0:00:10]}  Ng3+ {[%clk 0:00:37]} 40. Ke1 {[%clk 0:00:10]}  Be3 {[%clk 0:00:38]} 41. Be6 {[%clk 0:00:10]}  Kd6 {[%clk 0:00:38]} 42. Bc4 {[%clk 0:00:10]}  Ke5 {[%clk 0:00:38]} 43. Bd3 {[%clk 0:00:10]}  h5 {[%clk 0:00:38]} 44. Kd1 {[%clk 0:00:10]}  h4 {[%clk 0:00:38]} 45. Ke1 {[%clk 0:00:10]}  Kf4 {[%clk 0:00:39]} 46. Bc2 {[%clk 0:00:10]}  Bd4 {[%clk 0:00:39]} 47. Bd3 {[%clk 0:00:11]}  Nf5 {[%clk 0:00:39]} 48. Kf1 {[%clk 0:00:10]}  Ne3+ {[%clk 0:00:39]} 49. Kg1 {[%clk 0:00:10]}  Kg3 {[%clk 0:00:39]} 50. Kh1 {[%clk 0:00:05]}  Nxg2 {[%clk 0:00:38]} 51. Bf5 {[%clk 0:00:05]}  Nf4 {[%clk 0:00:37]} 52. Bg4 {[%clk 0:00:04]}  Nd3 {[%clk 0:00:37]} 53. f4 {[%clk 0:00:03]}  Nf2+ {[%clk 0:00:37]} 54. Kg1 {[%clk 0:00:01]}  Nxg4+ {[%clk 0:00:38]} 55. Kh1 {[%clk 0:00:02]}  Nf2+ {[%clk 0:00:38]} 56. Kg1 {[%clk 0:00:02]}  Kxh3 {[%clk 0:00:38]} 57. f5 {[%clk 0:00:02]}  Kg4 {[%clk 0:00:38]} 58. f6 {[%clk 0:00:02]}  gxf6 {[%clk 0:00:38]} 59. Kh2 {[%clk 0:00:03]}  h3 {[%clk 0:00:38]} 60. Kg1 {[%clk 0:00:04]}  Kg3 {[%clk 0:00:39]} 61. Kf1 {[%clk 0:00:04]}  h2 {[%clk 0:00:40]} 0-1


[Site "https://www.chess.com"]

[Event "Titled Tuesday Blitz November 22 Late 2022"]
[White "Fernandez Guillen, Ernesto J."]
[Black "Jobava, Baadur"]
[WhiteFideId "3512428"]
[BlackFideId "13601520"]
[WhiteElo "2450"]
[BlackElo "2582"]
[Result "0-1"]
[Round "03"]
[TimeControl "180+1"]
[Date "2022.11.22"]
[WhiteClock "0:00:11"]
[BlackClock "0:00:46"]

1. e4 {[%clk 0:02:50]}  e5 {[%clk 0:02:59]} 2. Nf3 {[%clk 0:02:43]}  Nf6 {[%clk 0:02:57]} 3. Nxe5 {[%clk 0:02:38]}  d6 {[%clk 0:02:57]} 4. Nf3 {[%clk 0:02:35]}  Nxe4 {[%clk 0:02:57]} 5. d4 {[%clk 0:02:36]}  d5 {[%clk 0:02:57]} 6. Bd3 {[%clk 0:02:36]}  Bd6 {[%clk 0:02:57]} 7. O-O {[%clk 0:02:37]}  O-O {[%clk 0:02:58]} 8. c4 {[%clk 0:02:37]}  c6 {[%clk 0:02:58]} 9. Nc3 {[%clk 0:02:36]}  Nxc3 {[%clk 0:02:58]} 10. bxc3 {[%clk 0:02:37]}  h6 {[%clk 0:02:54]} 11. h3 {[%clk 0:02:36]}  Nd7 {[%clk 0:02:54]} 12. Rb1 {[%clk 0:02:34]}  Re8 {[%clk 0:02:48]} 13. c5 {[%clk 0:02:27]}  Bc7 {[%clk 0:02:48]} 14. Qa4 {[%clk 0:02:23]}  Nf6 {[%clk 0:02:43]} 15. Be3 {[%clk 0:02:23]}  Ne4 {[%clk 0:02:30]} 16. Qc2 {[%clk 0:02:22]}  Qf6 {[%clk 0:02:22]} 17. Nd2 {[%clk 0:01:55]}  Qg6 {[%clk 0:01:55]} 18. Kh1 {[%clk 0:01:28]}  Bf5 {[%clk 0:01:48]} 19. Bxe4 {[%clk 0:01:23]}  Rxe4 {[%clk 0:01:47]} 20. Qd1 {[%clk 0:01:09]}  Rh4 {[%clk 0:01:28]} 21. Nf3 {[%clk 0:01:08]}  Rh5 {[%clk 0:01:04]} 22. Ng1 {[%clk 0:01:00]}  Be4 {[%clk 0:00:54]} 23. Nf3 {[%clk 0:00:13]}  Qg4 {[%clk 0:00:46]} 24. Kg1 {[%clk 0:00:12]}  Rxh3 {[%clk 0:00:46]} 25. Re1 {[%clk 0:00:11]}  Bxf3 {[%clk 0:00:46]} 0-1


[Site "https://www.chess.com"]

[Event "Titled Tuesday Blitz November 22 Late 2022"]
[White "Fier, Alexandr"]
[Black "Vlassov, Nikolai"]
[WhiteFideId "2107139"]
[BlackFideId "4103360"]
[WhiteElo "2794"]
[BlackElo "2498"]
[Result "1-0"]
[Round "03"]
[TimeControl "180+1"]
[Date "2022.11.23"]
[WhiteClock "0:02:06"]
[BlackClock "0:00:04"]

1. d4 {[%clk 0:03:00]}  Nf6 {[%clk 0:02:59]} 2. Bg5 {[%clk 0:03:00]}  e6 {[%clk 0:02:59]} 3. e4 {[%clk 0:03:00]}  h6 {[%clk 0:02:58]} 4. Bxf6 {[%clk 0:03:01]}  Qxf6 {[%clk 0:02:59]} 5. c3 {[%clk 0:03:01]}  d5 {[%clk 0:02:56]} 6. Nd2 {[%clk 0:03:00]}  c5 {[%clk 0:02:55]} 7. Ngf3 {[%clk 0:03:01]}  Nc6 {[%clk 0:02:52]} 8. Bb5 {[%clk 0:03:00]}  cxd4 {[%clk 0:02:49]} 9. Nxd4 {[%clk 0:03:00]}  Bd7 {[%clk 0:02:48]} 10. exd5 {[%clk 0:03:00]}  Nxd4 {[%clk 0:02:33]} 11. Bxd7+ {[%clk 0:02:59]}  Kxd7 {[%clk 0:02:33]} 12. cxd4 {[%clk 0:03:00]}  exd5 {[%clk 0:02:29]} 13. O-O {[%clk 0:03:00]}  Bd6 {[%clk 0:01:44]} 14. Qa4+ {[%clk 0:03:00]}  Ke7 {[%clk 0:01:37]} 15. Rfe1+ {[%clk 0:03:00]}  Kf8 {[%clk 0:01:37]} 16. Qd7 {[%clk 0:02:59]}  Rb8 {[%clk 0:01:25]} 17. Nf3 {[%clk 0:03:00]}  g6 {[%clk 0:01:09]} 18. Ne5 {[%clk 0:03:00]}  Kg7 {[%clk 0:01:06]} 19. Nxf7 {[%clk 0:03:00]}  Qxf7 {[%clk 0:01:03]} 20. Qxd6 {[%clk 0:03:00]}  Rhe8 {[%clk 0:01:01]} 21. Re5 {[%clk 0:02:59]}  Rbd8 {[%clk 0:00:56]} 22. Qc5 {[%clk 0:02:54]}  b6 {[%clk 0:00:54]} 23. Qc2 {[%clk 0:02:51]}  Rxe5 {[%clk 0:00:50]} 24. dxe5 {[%clk 0:02:52]}  d4 {[%clk 0:00:51]} 25. Rd1 {[%clk 0:02:53]}  Qd5 {[%clk 0:00:35]} 26. f4 {[%clk 0:02:37]}  d3 {[%clk 0:00:33]} 27. Qf2 {[%clk 0:02:37]}  Qxa2 {[%clk 0:00:28]} 28. h4 {[%clk 0:02:35]}  Qd5 {[%clk 0:00:23]} 29. h5 {[%clk 0:02:35]}  Qd4 {[%clk 0:00:13]} 30. hxg6 {[%clk 0:02:34]}  Kxg6 {[%clk 0:00:13]} 31. g4 {[%clk 0:02:34]}  a5 {[%clk 0:00:09]} 32. Kg2 {[%clk 0:02:34]}  Qxf2+ {[%clk 0:00:08]} 33. Kxf2 {[%clk 0:02:35]}  b5 {[%clk 0:00:08]} 34. e6 {[%clk 0:02:35]}  a4 {[%clk 0:00:07]} 35. Ke3 {[%clk 0:02:35]}  Kf6 {[%clk 0:00:05]} 36. f5 {[%clk 0:02:34]}  h5 {[%clk 0:00:06]} 37. gxh5 {[%clk 0:02:34]}  Kxf5 {[%clk 0:00:06]} 38. Rxd3 {[%clk 0:02:32]}  Re8 {[%clk 0:00:06]} 39. Rd5+ {[%clk 0:02:32]}  Kxe6 {[%clk 0:00:05]} 40. Rxb5 {[%clk 0:02:32]}  Kf6+ {[%clk 0:00:05]} 41. Kd3 {[%clk 0:02:33]}  Ra8 {[%clk 0:00:05]} 42. Rb6+ {[%clk 0:02:23]}  Kg7 {[%clk 0:00:04]} 43. Rg6+ {[%clk 0:02:24]}  Kh7 {[%clk 0:00:04]} 44. Rg1 {[%clk 0:02:25]}  a3 {[%clk 0:00:05]} 45. b3 {[%clk 0:02:25]}  a2 {[%clk 0:00:05]} 46. Ra1 {[%clk 0:02:26]}  Kh6 {[%clk 0:00:06]} 47. Kc3 {[%clk 0:02:26]}  Kxh5 {[%clk 0:00:06]} 48. Kb2 {[%clk 0:02:27]}  Kg6 {[%clk 0:00:06]} 49. Rxa2 {[%clk 0:02:28]}  Rb8 {[%clk 0:00:05]} 50. Ra1 {[%clk 0:02:28]}  Kf5 {[%clk 0:00:05]} 51. Re1 {[%clk 0:02:29]}  Kf6 {[%clk 0:00:02]} 52. Re3 {[%clk 0:02:27]}  Kf5 {[%clk 0:00:03]} 53. Kc3 {[%clk 0:02:28]}  Rc8+ {[%clk 0:00:03]} 54. Kb4 {[%clk 0:02:28]}  Rb8+ {[%clk 0:00:03]} 55. Kc4 {[%clk 0:02:29]}  Rc8+ {[%clk 0:00:04]} 56. Kd5 {[%clk 0:02:29]}  Kf4 {[%clk 0:00:04]} 57. Rh3 {[%clk 0:02:27]}  Rb8 {[%clk 0:00:04]} 58. Kc6 {[%clk 0:02:20]}  Ke5 {[%clk 0:00:03]} 59. Kc7 {[%clk 0:02:20]}  Rb4 {[%clk 0:00:03]} 60. Kc6 {[%clk 0:02:19]}  Rb8 {[%clk 0:00:02]} 61. Kc7 {[%clk 0:02:20]}  Rb4 {[%clk 0:00:02]} 62. Rd3 {[%clk 0:02:20]}  Ke6 {[%clk 0:00:02]} 63. Kc6 {[%clk 0:02:17]}  Rb8 {[%clk 0:00:02]} 64. Kc5 {[%clk 0:02:16]}  Ke7 {[%clk 0:00:01]} 65. b4 {[%clk 0:02:16]}  Rc8+ {[%clk 0:00:01]} 66. Kb5 {[%clk 0:02:16]}  Rb8+ {[%clk 0:00:02]} 67. Kc4 {[%clk 0:02:17]}  Rc8+ {[%clk 0:00:02]} 68. Kb3 {[%clk 0:02:18]}  Rb8 {[%clk 0:00:03]} 69. Rd4 {[%clk 0:02:18]}  Ke6 {[%clk 0:00:03]} 70. Kc4 {[%clk 0:02:19]}  Ke5 {[%clk 0:00:03]} 71. Rd5+ {[%clk 0:02:19]}  Ke6 {[%clk 0:00:03]} 72. b5 {[%clk 0:02:08]}  Rc8+ {[%clk 0:00:04]} 73. Rc5 {[%clk 0:02:09]}  Kd7 {[%clk 0:00:04]} 74. b6 {[%clk 0:02:05]}  Rb8 {[%clk 0:00:03]} 75. Kb5 {[%clk 0:02:06]}  Kd6 {[%clk 0:00:03]} 76. Rc1 {[%clk 0:02:05]}  Kd7 {[%clk 0:00:02]} 77. Ka6 {[%clk 0:02:05]}  Ra8+ {[%clk 0:00:03]} 78. Kb7 {[%clk 0:02:06]}  Ra2 {[%clk 0:00:03]} 79. Kb8 {[%clk 0:02:06]}  Ke7 {[%clk 0:00:03]} 80. b7 {[%clk 0:02:07]}  Kd7 {[%clk 0:00:04]} 81. Rd1+ {[%clk 0:02:07]}  Ke7 {[%clk 0:00:03]} 82. Rd4 {[%clk 0:02:06]}  Rc2 {[%clk 0:00:04]} 83. Ra4 {[%clk 0:02:06]} 1-0


[Site "https://www.chess.com"]